[Event "Late-Titled-Tuesday-Blitz-March-19-2024"]
[Site "Chess.com"]
[Date "2024.03.19"]
[Round "6"]
[White "RantomOpening"]
[Black "prochn"]
[Result "1/2-1/2"]
[WhiteElo "2589"]
[BlackElo "2481"]
[TimeControl "180+1"]
[EndTime "15:05:38 PDT"]
[Termination "Game drawn by repetition"]

1. Nf3 {[%clk 0:03:00]} 1... d5 {[%clk 0:02:59.4]} 2. g3 {[%clk 0:02:59.1]} 2...
Nf6 {[%clk 0:02:59.2]} 3. Bg2 {[%clk 0:02:59.4]} 3... c6 {[%clk 0:02:59.8]} 4.
O-O {[%clk 0:02:59.8]} 4... Bf5 {[%clk 0:02:59.5]} 5. d3 {[%clk 0:03:00.3]} 5...
h6 {[%clk 0:02:58.6]} 6. Re1 {[%clk 0:02:59.6]} 6... e6 {[%clk 0:02:58.6]} 7.
Nbd2 {[%clk 0:02:58.5]} 7... Be7 {[%clk 0:02:57.2]} 8. b3 {[%clk 0:02:58.8]}
8... Nbd7 {[%clk 0:02:50]} 9. Bb2 {[%clk 0:02:58.8]} 9... Bg6 {[%clk 0:02:48.8]}
10. e4 {[%clk 0:02:59]} 10... O-O {[%clk 0:02:39.8]} 11. e5 {[%clk 0:02:59.4]}
11... Ne8 {[%clk 0:02:33.7]} 12. Nf1 {[%clk 0:02:55.5]} 12... c5 {[%clk
0:02:18.8]} 13. h4 {[%clk 0:02:55.1]} 13... d4 {[%clk 0:02:18.4]} 14. a4 {[%clk
0:02:48.8]} 14... Qc7 {[%clk 0:02:15]} 15. N1d2 {[%clk 0:02:45.6]} 15... f6
{[%clk 0:02:04.5]} 16. Nc4 {[%clk 0:02:44.3]} 16... f5 {[%clk 0:02:00.8]} 17.
Nfd2 {[%clk 0:02:37.5]} 17... Rb8 {[%clk 0:01:47.6]} 18. a5 {[%clk 0:02:37.4]}
18... f4 {[%clk 0:01:44.1]} 19. Be4 {[%clk 0:02:33.6]} 19... fxg3 {[%clk
0:01:35]} 20. fxg3 {[%clk 0:02:31.4]} 20... Nxe5 {[%clk 0:01:25.1]} 21. Nxe5
{[%clk 0:02:30.3]} 21... Qxe5 {[%clk 0:01:25.1]} 22. Qg4 {[%clk 0:02:27.1]}
22... Bf5 {[%clk 0:00:49.2]} 23. Bxf5 {[%clk 0:02:23.5]} 23... Qxf5 {[%clk
0:00:49.1]} 24. Qxf5 {[%clk 0:02:21.7]} 24... Rxf5 {[%clk 0:00:50]} 25. Rxe6
{[%clk 0:02:21.8]} 25... Bf8 {[%clk 0:00:36.7]} 26. Ree1 {[%clk 0:02:03.5]}
26... Nc7 {[%clk 0:00:34.7]} 27. Kg2 {[%clk 0:02:03.9]} 27... Nd5 {[%clk
0:00:34.7]} 28. Nc4 {[%clk 0:02:03.2]} 28... b5 {[%clk 0:00:31.9]} 29. axb6
{[%clk 0:02:02.9]} 29... axb6 {[%clk 0:00:32.8]} 30. Rf1 {[%clk 0:02:02.4]}
30... Rxf1 {[%clk 0:00:30.1]} 31. Kxf1 {[%clk 0:02:03.3]} 31... b5 {[%clk
0:00:30.6]} 32. Nd2 {[%clk 0:02:00.7]} 32... Ne3+ {[%clk 0:00:30.9]} 33. Kg1
{[%clk 0:02:00.6]} 33... Nxc2 {[%clk 0:00:31.2]} 34. Rc1 {[%clk 0:02:00.6]}
34... Ne3 {[%clk 0:00:29.6]} 35. Ba3 {[%clk 0:01:58.1]} 35... Rc8 {[%clk
0:00:28.9]} 36. Ne4 {[%clk 0:01:56.3]} 36... c4 {[%clk 0:00:27.3]} 37. Bxf8
{[%clk 0:01:56]} 37... Kxf8 {[%clk 0:00:23.3]} 38. bxc4 {[%clk 0:01:56.2]} 38...
bxc4 {[%clk 0:00:23.6]} 39. Nd6 {[%clk 0:01:56.4]} 39... Rc6 {[%clk 0:00:21.1]}
40. Nxc4 {[%clk 0:01:56.5]} 40... Nxc4 {[%clk 0:00:19.2]} 41. dxc4 {[%clk
0:01:14.7]} 41... d3 {[%clk 0:00:18.8]} 42. c5 {[%clk 0:01:04.7]} 42... d2
{[%clk 0:00:19.2]} 43. Rd1 {[%clk 0:01:05.1]} 43... Rxc5 {[%clk 0:00:19.7]} 44.
Rxd2 {[%clk 0:01:05.6]} 44... h5 {[%clk 0:00:19.9]} 45. Kg2 {[%clk 0:01:05.9]}
45... g6 {[%clk 0:00:19.3]} 46. Rb2 {[%clk 0:01:06]} 46... Kg7 {[%clk
0:00:18.7]} 47. Kf3 {[%clk 0:01:06.5]} 47... Kh6 {[%clk 0:00:18.9]} 48. Rb3
{[%clk 0:01:05.8]} 48... Rc4 {[%clk 0:00:18.9]} 49. Ra3 {[%clk 0:01:06.1]} 49...
Rb4 {[%clk 0:00:19.3]} 50. Rd3 {[%clk 0:01:06.3]} 50... Ra4 {[%clk 0:00:19.7]}
51. Rd5 {[%clk 0:01:05.5]} 51... Ra3+ {[%clk 0:00:19.7]} 52. Kg2 {[%clk
0:01:05.2]} 52... Ra4 {[%clk 0:00:19.9]} 53. Rd3 {[%clk 0:01:04.3]} 53... Rb4
{[%clk 0:00:20.2]} 54. Kh3 {[%clk 0:01:04.7]} 54... Ra4 {[%clk 0:00:20.6]} 55.
Rb3 {[%clk 0:01:05]} 55... Rc4 {[%clk 0:00:20.7]} 56. Ra3 {[%clk 0:01:05.2]}
56... Rb4 {[%clk 0:00:21.1]} 57. Kg2 {[%clk 0:01:05.1]} 57... Rc4 {[%clk
0:00:21.5]} 58. Kf3 {[%clk 0:01:05.7]} 58... Rb4 {[%clk 0:00:21.8]} 59. Rd3
{[%clk 0:01:05.4]} 59... Rc4 {[%clk 0:00:22.1]} 60. Re3 {[%clk 0:01:05.4]} 60...
Rb4 {[%clk 0:00:22.5]} 61. Re5 {[%clk 0:01:05.8]} 61... Ra4 {[%clk 0:00:22.7]}
62. Re6 {[%clk 0:01:06.1]} 62... Ra3+ {[%clk 0:00:22.7]} 63. Kf4 {[%clk
0:01:06.1]} 63... Ra4+ {[%clk 0:00:23.1]} 64. Ke3 {[%clk 0:01:05.9]} 64... Ra3+
{[%clk 0:00:23.4]} 65. Kf4 {[%clk 0:01:04.5]} 65... Ra4+ {[%clk 0:00:23.8]} 66.
Kf3 {[%clk 0:01:04.5]} 66... Ra3+ {[%clk 0:00:24.3]} 67. Kf2 {[%clk 0:01:04.5]}
67... Ra2+ {[%clk 0:00:24.7]} 68. Kf3 {[%clk 0:01:03.9]} 68... Ra3+ {[%clk
0:00:25.1]} 1/2-1/2

[Event "Late-Titled-Tuesday-Blitz-March-19-2024"]
[Site "Chess.com"]
[Date "2024.03.19"]
[Round "6"]
[White "mbojan"]
[Black "GMBenjaminBok"]
[Result "1-0"]
[WhiteElo "2819"]
[BlackElo "2960"]
[TimeControl "180+1"]
[EndTime "15:05:39 PDT"]
[Termination "mbojan won by resignation"]

1. e4 {[%clk 0:03:00.9]} 1... c5 {[%clk 0:02:59.5]} 2. Nf3 {[%clk 0:03:01.1]}
2... d6 {[%clk 0:03:00.1]} 3. d4 {[%clk 0:03:01.4]} 3... cxd4 {[%clk 0:03:01]}
4. Nxd4 {[%clk 0:03:02.1]} 4... Nf6 {[%clk 0:03:01.6]} 5. Nc3 {[%clk 0:03:02.7]}
5... a6 {[%clk 0:03:02.1]} 6. Be2 {[%clk 0:03:01.8]} 6... e5 {[%clk 0:03:02.2]}
7. Nb3 {[%clk 0:03:02.1]} 7... Be7 {[%clk 0:03:02.4]} 8. O-O {[%clk 0:03:02.6]}
8... O-O {[%clk 0:03:02.3]} 9. Qd3 {[%clk 0:03:03]} 9... Be6 {[%clk 0:03:01.8]}
10. Bd2 {[%clk 0:03:03.3]} 10... Nbd7 {[%clk 0:03:01.3]} 11. Nd5 {[%clk
0:03:02.7]} 11... Bxd5 {[%clk 0:02:44.6]} 12. exd5 {[%clk 0:03:03.6]} 12... Ne8
{[%clk 0:02:13.9]} 13. c4 {[%clk 0:03:03]} 13... Bg5 {[%clk 0:02:06.6]} 14. Bc3
{[%clk 0:02:59.3]} 14... b6 {[%clk 0:01:55.5]} 15. Bg4 {[%clk 0:02:28.6]} 15...
g6 {[%clk 0:01:44]} 16. Bxd7 {[%clk 0:02:28.5]} 16... Qxd7 {[%clk 0:01:44.9]}
17. Rae1 {[%clk 0:02:25.6]} 17... f5 {[%clk 0:01:43]} 18. g3 {[%clk 0:01:51.9]}
18... Bf6 {[%clk 0:01:20.4]} 19. f4 {[%clk 0:01:40.1]} 19... e4 {[%clk
0:01:20.7]} 20. Qe3 {[%clk 0:01:27.7]} 20... Qc7 {[%clk 0:01:20.6]} 21. Bxf6
{[%clk 0:01:23.4]} 21... Nxf6 {[%clk 0:01:21.5]} 22. Rc1 {[%clk 0:01:23.5]}
22... Rac8 {[%clk 0:01:11.3]} 23. Nd4 {[%clk 0:01:23.5]} 23... Qc5 {[%clk
0:00:46.6]} 24. h3 {[%clk 0:01:23.4]} 24... a5 {[%clk 0:00:42.3]} 25. b3 {[%clk
0:01:22.7]} 25... Rfe8 {[%clk 0:00:39.2]} 26. Rfe1 {[%clk 0:01:22.8]} 26... Kf7
{[%clk 0:00:35.6]} 27. Kf2 {[%clk 0:01:22.9]} 27... Ra8 {[%clk 0:00:27.3]} 28.
Nb5 {[%clk 0:01:18.6]} 28... Red8 {[%clk 0:00:20.5]} 29. a4 {[%clk 0:00:50.9]}
29... Qxe3+ {[%clk 0:00:15.7]} 30. Kxe3 {[%clk 0:00:50.5]} 30... Ke7 {[%clk
0:00:16.2]} 31. g4 {[%clk 0:00:46.5]} 31... Nd7 {[%clk 0:00:11]} 32. Rg1 {[%clk
0:00:34.9]} 32... Rg8 {[%clk 0:00:11]} 33. Nd4 {[%clk 0:00:27.9]} 33... Kf6
{[%clk 0:00:10.7]} 34. Rg2 {[%clk 0:00:28.1]} 34... Nc5 {[%clk 0:00:06.4]} 35.
Rcg1 {[%clk 0:00:27.6]} 35... fxg4 {[%clk 0:00:04.8]} 36. hxg4 {[%clk
0:00:28.5]} 36... Rh8 {[%clk 0:00:02.6]} 37. g5+ {[%clk 0:00:27.9]} 37... Kf7
{[%clk 0:00:02.9]} 38. Rh2 {[%clk 0:00:28.4]} 38... Rae8 {[%clk 0:00:01.4]} 39.
Rgh1 {[%clk 0:00:29]} 39... Kg7 {[%clk 0:00:01.9]} 40. f5 {[%clk 0:00:29.7]}
40... gxf5 {[%clk 0:00:02.4]} 41. Nxf5+ {[%clk 0:00:30.4]} 41... Kg6 {[%clk
0:00:02.8]} 42. Nxd6 {[%clk 0:00:30.8]} 42... Rd8 {[%clk 0:00:03]} 43. Rh6+
{[%clk 0:00:31]} 43... Kg7 {[%clk 0:00:02.1]} 44. Nf5+ {[%clk 0:00:30.8]} 44...
Kf7 {[%clk 0:00:02.1]} 45. Rf6+ {[%clk 0:00:31.6]} 45... Ke8 {[%clk 0:00:02]}
46. g6 {[%clk 0:00:28.7]} 46... Nxb3 {[%clk 0:00:01.6]} 47. Rxh7 {[%clk
0:00:24.1]} 47... Rxh7 {[%clk 0:00:01.9]} 48. gxh7 {[%clk 0:00:25]} 48... Kd7
{[%clk 0:00:02.6]} 49. Rd6+ {[%clk 0:00:24.9]} 49... Kc7 {[%clk 0:00:02.7]} 50.
Rxd8 {[%clk 0:00:25.8]} 1-0

[Event "Late-Titled-Tuesday-Blitz-March-19-2024"]
[Site "Chess.com"]
[Date "2024.03.19"]
[Round "6"]
[White "teresin05"]
[Black "OverallStranger"]
[Result "1/2-1/2"]
[WhiteElo "2189"]
[BlackElo "2382"]
[TimeControl "180+1"]
[EndTime "15:05:39 PDT"]
[Termination "Game drawn - insufficient material"]

1. e4 {[%clk 0:03:00.9]} 1... e5 {[%clk 0:02:25.3]} 2. Nf3 {[%clk 0:02:58.3]}
2... d5 {[%clk 0:02:24.4]} 3. exd5 {[%clk 0:02:50.8]} 3... e4 {[%clk 0:02:24.4]}
4. Nd4 {[%clk 0:02:37.8]} 4... Nf6 {[%clk 0:02:20.5]} 5. d3 {[%clk 0:02:26.7]}
5... Qxd5 {[%clk 0:02:17.8]} 6. dxe4 {[%clk 0:02:16.8]} 6... Nxe4 {[%clk
0:02:12.4]} 7. Bd3 {[%clk 0:02:10.7]} 7... Bc5 {[%clk 0:02:06.7]} 8. Bxe4 {[%clk
0:01:05.2]} 8... Qxe4+ {[%clk 0:02:04.9]} 9. Qe2 {[%clk 0:01:04.9]} 9... Qxe2+
{[%clk 0:02:03.8]} 10. Nxe2 {[%clk 0:01:05.8]} 10... O-O {[%clk 0:02:03.5]} 11.
O-O {[%clk 0:01:05.5]} 11... Be7 {[%clk 0:02:01.1]} 12. Bf4 {[%clk 0:01:04.6]}
12... Bf6 {[%clk 0:02:01.1]} 13. c3 {[%clk 0:01:04.5]} 13... c6 {[%clk
0:01:59.2]} 14. Nd2 {[%clk 0:01:05]} 14... Nd7 {[%clk 0:01:55]} 15. Ne4 {[%clk
0:01:05]} 15... Bd8 {[%clk 0:01:53.9]} 16. Nd6 {[%clk 0:01:04.2]} 16... Bb6
{[%clk 0:01:51.6]} 17. Ng3 {[%clk 0:01:00.9]} 17... Nf6 {[%clk 0:01:51.5]} 18.
Nxc8 {[%clk 0:01:00.5]} 18... Raxc8 {[%clk 0:01:51.7]} 19. Rad1 {[%clk 0:00:57]}
19... Rcd8 {[%clk 0:01:52.1]} 20. Bd6 {[%clk 0:00:55]} 20... Rfe8 {[%clk
0:01:50.7]} 21. Nf5 {[%clk 0:00:49.2]} 21... g6 {[%clk 0:01:49.9]} 22. Nh6+
{[%clk 0:00:44.4]} 22... Kg7 {[%clk 0:01:49.2]} 23. Bf4 {[%clk 0:00:43.3]} 23...
Rxd1 {[%clk 0:01:45.4]} 24. Rxd1 {[%clk 0:00:44.2]} 24... Ne4 {[%clk 0:01:41.9]}
25. Ng4 {[%clk 0:00:43.1]} 25... h5 {[%clk 0:01:40.6]} 26. Ne3 {[%clk
0:00:42.2]} 26... g5 {[%clk 0:01:37]} 27. Bg3 {[%clk 0:00:34.6]} 27... h4 {[%clk
0:01:37.5]} 28. Bd6 {[%clk 0:00:32.8]} 28... Bxe3 {[%clk 0:01:31.3]} 29. fxe3
{[%clk 0:00:32.8]} 29... Nxd6 {[%clk 0:01:22.9]} 30. Rxd6 {[%clk 0:00:33.7]}
30... Rxe3 {[%clk 0:01:23.2]} 31. Kf2 {[%clk 0:00:34.2]} 31... Re7 {[%clk
0:01:22.8]} 32. Rd8 {[%clk 0:00:28.7]} 32... Kg6 {[%clk 0:01:20.6]} 33. Kf3
{[%clk 0:00:26.8]} 33... f5 {[%clk 0:01:20.2]} 34. Rg8+ {[%clk 0:00:25.9]} 34...
Rg7 {[%clk 0:01:20.4]} 35. Rd8 {[%clk 0:00:23.8]} 35... Kh5 {[%clk 0:01:19.9]}
36. Rh8+ {[%clk 0:00:22.2]} 36... Kg6 {[%clk 0:01:20.1]} 37. Rd8 {[%clk
0:00:22.2]} 37... Rh7 {[%clk 0:01:20.8]} 38. Rd6+ {[%clk 0:00:22.1]} 38... Kh5
{[%clk 0:01:20.3]} 39. Rf6 {[%clk 0:00:19.8]} 39... f4 {[%clk 0:01:15.7]} 40. h3
{[%clk 0:00:19.6]} 40... Re7 {[%clk 0:01:15.3]} 41. Rd6 {[%clk 0:00:19.6]} 41...
Re3+ {[%clk 0:01:14.6]} 42. Kf2 {[%clk 0:00:20.1]} 42... g4 {[%clk 0:01:14.9]}
43. hxg4+ {[%clk 0:00:18.6]} 43... Kxg4 {[%clk 0:01:15.1]} 44. Rd7 {[%clk
0:00:19.3]} 44... h3 {[%clk 0:01:12.8]} 45. Rg7+ {[%clk 0:00:18.2]} 45... Kf5
{[%clk 0:01:12.3]} 46. gxh3 {[%clk 0:00:18.2]} 46... Rxh3 {[%clk 0:01:12.2]} 47.
Rxb7 {[%clk 0:00:18.7]} 47... Ke4 {[%clk 0:01:12.5]} 48. Rxa7 {[%clk 0:00:18.8]}
48... Rh2+ {[%clk 0:01:12.8]} 49. Ke1 {[%clk 0:00:19.1]} 49... Rxb2 {[%clk
0:01:13.4]} 50. Re7+ {[%clk 0:00:19]} 50... Kd3 {[%clk 0:01:13.3]} 51. a4 {[%clk
0:00:18.7]} 51... Ra2 {[%clk 0:01:11.9]} 52. Ra7 {[%clk 0:00:17.6]} 52... Kxc3
{[%clk 0:01:11.7]} 53. a5 {[%clk 0:00:18]} 53... f3 {[%clk 0:01:10.4]} 54. a6
{[%clk 0:00:17]} 54... f2+ {[%clk 0:01:10.7]} 55. Kf1 {[%clk 0:00:17.2]} 55...
c5 {[%clk 0:01:10.3]} 56. Rc7 {[%clk 0:00:16.8]} 56... c4 {[%clk 0:01:10.4]} 57.
a7 {[%clk 0:00:16.9]} 57... Kd3 {[%clk 0:01:10]} 58. Rd7+ {[%clk 0:00:16.5]}
58... Kc2 {[%clk 0:01:10.2]} 59. Rf7 {[%clk 0:00:14.9]} 59... Kc1 {[%clk
0:01:08]} 60. Rc7 {[%clk 0:00:14.1]} 60... Ra4 {[%clk 0:01:00.9]} 61. Rxc4+
{[%clk 0:00:14.2]} 61... Rxc4 {[%clk 0:01:01.3]} 62. a8=Q {[%clk 0:00:14.1]}
62... Rc2 {[%clk 0:01:01.4]} 63. Qe4 {[%clk 0:00:13.8]} 63... Rd2 {[%clk
0:01:01.1]} 64. Qe3 {[%clk 0:00:14]} 64... Kc2 {[%clk 0:01:01]} 65. Qc5+ {[%clk
0:00:14.5]} 65... Kd1 {[%clk 0:01:00.9]} 66. Qc3 {[%clk 0:00:14.3]} 66... Rc2
{[%clk 0:01:00.4]} 67. Qd3+ {[%clk 0:00:14.3]} 67... Kc1 {[%clk 0:01:00.3]} 68.
Qa3+ {[%clk 0:00:14.5]} 68... Kb1 {[%clk 0:01:00.3]} 69. Qb3+ {[%clk 0:00:14.9]}
69... Rb2 {[%clk 0:01:00.8]} 70. Qxb2+ {[%clk 0:00:15.2]} 70... Kxb2 {[%clk
0:01:00.8]} 71. Kxf2 {[%clk 0:00:16.1]} 1/2-1/2

[Event "Late-Titled-Tuesday-Blitz-March-19-2024"]
[Site "Chess.com"]
[Date "2024.03.19"]
[Round "6"]
[White "Evandro_Barbosa"]
[Black "Crazy_girl99"]
[Result "1-0"]
[WhiteElo "2731"]
[BlackElo "2584"]
[TimeControl "180+1"]
[EndTime "15:05:43 PDT"]
[Termination "Evandro_Barbosa won on time"]

1. e4 {[%clk 0:03:00.9]} 1... e5 {[%clk 0:02:51.4]} 2. Nf3 {[%clk 0:03:00.4]}
2... Nc6 {[%clk 0:02:51]} 3. Bb5 {[%clk 0:03:00.6]} 3... a6 {[%clk 0:02:51.3]}
4. Ba4 {[%clk 0:03:00.7]} 4... Nf6 {[%clk 0:02:51.9]} 5. d3 {[%clk 0:03:01.1]}
5... b5 {[%clk 0:02:51.5]} 6. Bb3 {[%clk 0:03:01.2]} 6... Be7 {[%clk 0:02:46.1]}
7. Nc3 {[%clk 0:03:01.1]} 7... d6 {[%clk 0:02:46.4]} 8. Nd5 {[%clk 0:03:00.6]}
8... Be6 {[%clk 0:02:43.4]} 9. a3 {[%clk 0:02:59.4]} 9... h6 {[%clk 0:02:40.5]}
10. h3 {[%clk 0:02:57.3]} 10... Bxd5 {[%clk 0:02:39.4]} 11. exd5 {[%clk
0:02:56.7]} 11... Nb8 {[%clk 0:02:38.6]} 12. d4 {[%clk 0:02:51.5]} 12... Nbd7
{[%clk 0:02:38.3]} 13. O-O {[%clk 0:02:48.7]} 13... O-O {[%clk 0:02:37.9]} 14.
Re1 {[%clk 0:02:47.2]} 14... exd4 {[%clk 0:02:32.1]} 15. Nxd4 {[%clk 0:02:46.9]}
15... Nb8 {[%clk 0:02:20]} 16. Nf5 {[%clk 0:02:42.8]} 16... Re8 {[%clk
0:02:20.2]} 17. Qf3 {[%clk 0:02:04.3]} 17... Bf8 {[%clk 0:02:08.4]} 18. Bd2
{[%clk 0:02:03.1]} 18... Nbd7 {[%clk 0:02:01.3]} 19. Rxe8 {[%clk 0:01:47.1]}
19... Qxe8 {[%clk 0:01:55.6]} 20. Re1 {[%clk 0:01:45.6]} 20... Qd8 {[%clk
0:01:48.5]} 21. Bc3 {[%clk 0:01:37.1]} 21... g6 {[%clk 0:01:36.1]} 22. Nd4
{[%clk 0:01:30.7]} 22... Ne5 {[%clk 0:01:32]} 23. Rxe5 {[%clk 0:01:28.5]} 23...
dxe5 {[%clk 0:01:31.4]} 24. Nc6 {[%clk 0:01:28.9]} 24... Qd7 {[%clk 0:01:08.3]}
25. Qxf6 {[%clk 0:01:20.6]} 25... Bg7 {[%clk 0:01:08.4]} 26. Nxe5 {[%clk
0:01:11.2]} 26... Bxf6 {[%clk 0:00:59.2]} 27. Nxd7 {[%clk 0:01:10.8]} 27... Bxc3
{[%clk 0:00:58.9]} 28. bxc3 {[%clk 0:01:11.1]} 28... Kg7 {[%clk 0:00:56.7]} 29.
Kf1 {[%clk 0:01:09.4]} 29... Rd8 {[%clk 0:00:50.2]} 30. Nc5 {[%clk 0:01:08.6]}
30... a5 {[%clk 0:00:46.2]} 31. Ke2 {[%clk 0:01:07.7]} 31... a4 {[%clk
0:00:38.5]} 32. Ba2 {[%clk 0:01:07]} 32... Re8+ {[%clk 0:00:38]} 33. Kd2 {[%clk
0:01:05.8]} 33... g5 {[%clk 0:00:34.5]} 34. c4 {[%clk 0:01:05.7]} 34... bxc4
{[%clk 0:00:27.8]} 35. Bxc4 {[%clk 0:01:06.6]} 35... Rb8 {[%clk 0:00:27.6]} 36.
Nxa4 {[%clk 0:01:02.4]} 36... Ra8 {[%clk 0:00:21.2]} 37. Bb3 {[%clk 0:01:01.8]}
37... Kf6 {[%clk 0:00:20.5]} 38. Kc3 {[%clk 0:00:59.2]} 38... Ke5 {[%clk
0:00:20.9]} 39. Kb4 {[%clk 0:00:57.2]} 39... Kd6 {[%clk 0:00:19.6]} 40. Nb2
{[%clk 0:00:56.4]} 40... Rb8+ {[%clk 0:00:19.4]} 41. Kc3 {[%clk 0:00:56.3]}
41... Kc5 {[%clk 0:00:19.4]} 42. Nd3+ {[%clk 0:00:56.1]} 42... Kd6 {[%clk
0:00:19.9]} 43. a4 {[%clk 0:00:55.7]} 43... f5 {[%clk 0:00:20.3]} 44. Bc4 {[%clk
0:00:49.7]} 44... Re8 {[%clk 0:00:20]} 45. a5 {[%clk 0:00:48.9]} 45... h5 {[%clk
0:00:18.3]} 46. a6 {[%clk 0:00:45.5]} 46... g4 {[%clk 0:00:17]} 47. h4 {[%clk
0:00:44.8]} 47... c6 {[%clk 0:00:11.1]} 48. dxc6 {[%clk 0:00:42.8]} 48... Kxc6
{[%clk 0:00:12]} 49. g3 {[%clk 0:00:42.6]} 49... Kb6 {[%clk 0:00:12.2]} 50. Kd4
{[%clk 0:00:42.3]} 50... Re4+ {[%clk 0:00:12]} 51. Kd5 {[%clk 0:00:41.8]} 51...
Re2 {[%clk 0:00:10.5]} 52. c3 {[%clk 0:00:41.4]} 52... Rd2 {[%clk 0:00:09.9]}
53. Kd4 {[%clk 0:00:40.8]} 53... f4 {[%clk 0:00:09.7]} 54. gxf4 {[%clk
0:00:38.2]} 54... Re2 {[%clk 0:00:05.9]} 55. f5 {[%clk 0:00:36.1]} 1-0

[Event "Late-Titled-Tuesday-Blitz-March-19-2024"]
[Site "Chess.com"]
[Date "2024.03.19"]
[Round "6"]
[White "JosephRyan"]
[Black "jaskol95"]
[Result "0-1"]
[WhiteElo "2264"]
[BlackElo "2498"]
[TimeControl "180+1"]
[EndTime "15:05:43 PDT"]
[Termination "jaskol95 won on time"]

1. e4 {[%clk 0:03:00.9]} 1... d5 {[%clk 0:02:59.8]} 2. exd5 {[%clk 0:02:58.6]}
2... Nf6 {[%clk 0:03:00.5]} 3. d4 {[%clk 0:02:57.2]} 3... Bg4 {[%clk 0:03:00.2]}
4. Bb5+ {[%clk 0:02:56.5]} 4... c6 {[%clk 0:02:56]} 5. dxc6 {[%clk 0:02:56.3]}
5... bxc6 {[%clk 0:02:56.6]} 6. Be2 {[%clk 0:02:55.5]} 6... Bf5 {[%clk
0:02:52.2]} 7. Nf3 {[%clk 0:02:49.2]} 7... e6 {[%clk 0:02:52.5]} 8. O-O {[%clk
0:02:41]} 8... Bd6 {[%clk 0:02:50.8]} 9. c4 {[%clk 0:02:33.4]} 9... Nbd7 {[%clk
0:02:50.3]} 10. Nc3 {[%clk 0:02:33.4]} 10... O-O {[%clk 0:02:49.8]} 11. Bg5
{[%clk 0:02:31.6]} 11... h6 {[%clk 0:02:49.4]} 12. Bh4 {[%clk 0:02:31.6]} 12...
Qc7 {[%clk 0:02:47.6]} 13. Bg3 {[%clk 0:02:31.5]} 13... Bxg3 {[%clk 0:02:47.1]}
14. hxg3 {[%clk 0:02:32.4]} 14... Rab8 {[%clk 0:02:46.4]} 15. b3 {[%clk
0:02:31.5]} 15... Qa5 {[%clk 0:02:46.4]} 16. Rc1 {[%clk 0:02:28.8]} 16... Ne4
{[%clk 0:02:46.2]} 17. Nxe4 {[%clk 0:02:28]} 17... Bxe4 {[%clk 0:02:47.1]} 18.
Qd2 {[%clk 0:02:27.6]} 18... Qa3 {[%clk 0:02:39.8]} 19. g4 {[%clk 0:01:50.9]}
19... Rfd8 {[%clk 0:02:29.7]} 20. g5 {[%clk 0:01:47.8]} 20... hxg5 {[%clk
0:02:30]} 21. Nxg5 {[%clk 0:01:43.4]} 21... Bg6 {[%clk 0:02:30.3]} 22. Bf3
{[%clk 0:01:35.2]} 22... Ne5 {[%clk 0:02:23.5]} 23. Be4 {[%clk 0:01:28.2]} 23...
Qd6 {[%clk 0:01:59.8]} 24. Bxg6 {[%clk 0:01:23.5]} 24... Nxg6 {[%clk 0:01:59.9]}
25. Rcd1 {[%clk 0:01:19.1]} 25... f6 {[%clk 0:01:54.9]} 26. Ne4 {[%clk
0:01:15.2]} 26... Qe7 {[%clk 0:01:42.2]} 27. Rfe1 {[%clk 0:01:11.4]} 27... Kf7
{[%clk 0:01:41.5]} 28. Qe3 {[%clk 0:01:06.7]} 28... Rh8 {[%clk 0:01:32.1]} 29.
g3 {[%clk 0:01:04.6]} 29... Rh3 {[%clk 0:01:21.7]} 30. Kg2 {[%clk 0:01:03.9]}
30... Rbh8 {[%clk 0:01:21.9]} 31. Rh1 {[%clk 0:01:03.7]} 31... Nh4+ {[%clk
0:01:11.8]} 32. Kxh3 {[%clk 0:00:44]} 32... Nf5+ {[%clk 0:01:10]} 33. Kg2 {[%clk
0:00:44]} 33... Nxe3+ {[%clk 0:01:10.2]} 34. fxe3 {[%clk 0:00:44.2]} 34... Rxh1
{[%clk 0:01:06.2]} 35. Rxh1 {[%clk 0:00:43.3]} 35... Qa3 {[%clk 0:01:06.7]} 36.
c5 {[%clk 0:00:36.5]} 36... Qxa2+ {[%clk 0:01:06.3]} 37. Kf3 {[%clk 0:00:36.3]}
37... Qxb3 {[%clk 0:01:05.8]} 38. Nd6+ {[%clk 0:00:34]} 38... Kg6 {[%clk
0:01:02.6]} 39. Rh4 {[%clk 0:00:29.2]} 39... Qd1+ {[%clk 0:00:58.5]} 40. Kf2
{[%clk 0:00:28.2]} 40... a5 {[%clk 0:00:56.4]} 41. Rh8 {[%clk 0:00:18]} 41...
Qc2+ {[%clk 0:00:49]} 42. Kf3 {[%clk 0:00:17.2]} 42... a4 {[%clk 0:00:46.7]} 43.
Ra8 {[%clk 0:00:14.2]} 43... Qb3 {[%clk 0:00:47.2]} 44. Ra7 {[%clk 0:00:10]}
44... a3 {[%clk 0:00:45.3]} 45. Ne8 {[%clk 0:00:09.3]} 45... a2 {[%clk
0:00:37.8]} 46. Rxg7+ {[%clk 0:00:07.9]} 46... Kh6 {[%clk 0:00:38.4]} 47. Rg8
{[%clk 0:00:01.6]} 47... a1=Q {[%clk 0:00:23.6]} 48. Rh8+ {[%clk 0:00:01.6]}
48... Kg6 {[%clk 0:00:23.2]} 0-1

[Event "Late-Titled-Tuesday-Blitz-March-19-2024"]
[Site "Chess.com"]
[Date "2024.03.19"]
[Round "6"]
[White "maurovargas01"]
[Black "rhwr"]
[Result "1-0"]
[WhiteElo "1831"]
[BlackElo "2301"]
[TimeControl "180+1"]
[EndTime "15:05:45 PDT"]
[Termination "maurovargas01 won by checkmate"]

1. e4 {[%clk 0:01:36.7]} 1... c5 {[%clk 0:02:58.2]} 2. Nc3 {[%clk 0:01:34.8]}
2... Nc6 {[%clk 0:02:57.5]} 3. f4 {[%clk 0:01:35.7]} 3... g6 {[%clk 0:02:56.5]}
4. Nf3 {[%clk 0:01:36.6]} 4... Bg7 {[%clk 0:02:56.9]} 5. d3 {[%clk 0:01:36.2]}
5... e6 {[%clk 0:02:56.9]} 6. g3 {[%clk 0:01:36.5]} 6... Nge7 {[%clk 0:02:57.4]}
7. Bg2 {[%clk 0:01:37.4]} 7... O-O {[%clk 0:02:57.8]} 8. O-O {[%clk 0:01:38.3]}
8... d5 {[%clk 0:02:57.7]} 9. e5 {[%clk 0:01:37.9]} 9... Rb8 {[%clk 0:02:56.2]}
10. Nb5 {[%clk 0:01:35.6]} 10... a6 {[%clk 0:02:52.2]} 11. Nd6 {[%clk
0:01:34.9]} 11... Nf5 {[%clk 0:02:52.3]} 12. Nxc8 {[%clk 0:01:34]} 12... Qxc8
{[%clk 0:02:47.7]} 13. c3 {[%clk 0:01:34.6]} 13... b5 {[%clk 0:02:42.7]} 14. g4
{[%clk 0:01:34.7]} 14... Nfe7 {[%clk 0:02:42.1]} 15. Qe1 {[%clk 0:01:34.4]}
15... d4 {[%clk 0:02:13.3]} 16. Ng5 {[%clk 0:01:22.8]} 16... h6 {[%clk
0:02:10.8]} 17. Ne4 {[%clk 0:01:22.3]} 17... Nd8 {[%clk 0:02:06.1]} 18. Qh4
{[%clk 0:01:19.4]} 18... Qc7 {[%clk 0:01:52.8]} 19. Nf6+ {[%clk 0:01:16.5]}
19... Kh8 {[%clk 0:01:40.6]} 20. Bd2 {[%clk 0:01:14.3]} 20... dxc3 {[%clk
0:01:30.3]} 21. bxc3 {[%clk 0:01:13]} 21... b4 {[%clk 0:01:28.9]} 22. cxb4
{[%clk 0:01:05.7]} 22... cxb4 {[%clk 0:01:28]} 23. Rac1 {[%clk 0:01:04.7]} 23...
Qa7+ {[%clk 0:01:27.3]} 24. Kh1 {[%clk 0:01:02.3]} 24... b3 {[%clk 0:01:21.3]}
25. axb3 {[%clk 0:01:01.4]} 25... Rxb3 {[%clk 0:01:21]} 26. f5 {[%clk
0:00:59.3]} 26... h5 {[%clk 0:01:01.9]} 27. gxh5 {[%clk 0:00:53.5]} 27... Nxf5
{[%clk 0:01:01]} 28. Qh3 {[%clk 0:00:47.7]} 28... g5 {[%clk 0:00:52.5]} 29. Bxg5
{[%clk 0:00:41.6]} 29... Nh6 {[%clk 0:00:42.6]} 30. Be4 {[%clk 0:00:29.2]} 30...
Qd4 {[%clk 0:00:38.8]} 31. Qg3 {[%clk 0:00:20.2]} 31... Nb7 {[%clk 0:00:25.2]}
32. Rg1 {[%clk 0:00:19.1]} 32... Qd8 {[%clk 0:00:08.5]} 33. Bxh6 {[%clk
0:00:18.4]} 33... Bxh6 {[%clk 0:00:08.2]} 34. Qf3 {[%clk 0:00:11.2]} 34... Bxc1
{[%clk 0:00:07.4]} 35. Rxc1 {[%clk 0:00:09.9]} 35... Na5 {[%clk 0:00:05.1]} 36.
Qe3 {[%clk 0:00:09.6]} 36... Kg7 {[%clk 0:00:04.1]} 37. Qg5+ {[%clk 0:00:07.7]}
37... Kh8 {[%clk 0:00:01.7]} 38. Qh6# {[%clk 0:00:07.9]} 1-0